bitfinex-derivatives/quotes_ETHF0:USTF0_20241105
["timestamp","ask_amount","ask_price","bid_price","bid_amount"]
[1730840111801,44.87493,2427.7,2427.4,0.41196]
[1730840112208,0.41195,2427.6,2427.4,0.41196]
[1730840112401,0.41196,2427.5,2427.3,0.41199]
[1730840112598,0.41195,2427.6,2427.4,0.41198]
[1730840113604,3.663,2427.7,2427.2,0.475]
[1730840113798,0.4552,2427.7,2427.6,0.41195]
[1730840113997,0.4552,2427.7,2427.3,3.2078]
[1730840114194,0.4552,2427.7,2427.4,0.41198]
[1730840114431,0.4552,2427.7,2427.6,0.41195]
[1730840114908,4.5744,2427.7,2427.6,0.41195]
[1730840115103,4.1192,2427.7,2427.6,0.41195]
[1730840115305,0.892,2427.9,2427.8,0.41191]
[1730840116405,3.2078,2428.1,2427.4,0.9032]
[1730840116716,3.61967,2428.1,2427.9,0.41189]
[1730840117010,3.2078,2428.1,2428.0,0.41188]
[1730840117407,0.4648,2428.3,2428.2,0.41184]
[1730840117807,4.5832,2428.3,2428.2,0.41184]
[1730840118010,0.4648,2428.3,2428.2,0.41184]
[1730840119007,0.4648,2428.3,2427.9,4.1353]
[1730840119213,7.3262,2428.2,2427.4,0.096]
[1730840119516,3.6197,2427.9,2427.6,0.41193]
[1730840119808,3.6197,2427.9,2427.7,0.41193]
[1730840119809,0.4372,2427.8,2427.7,0.41193]
[1730840120808,0.88756,2428.1,2427.9,0.41189]
[1730840121011,0.41189,2428.0,2427.7,0.41192]
[1730840121407,0.41188,2428.0,2427.7,0.41192]
[1730840121709,0.4757,2428.1,2427.9,0.41189]
[1730840121909,0.88756,2428.1,2427.9,0.41189]
[1730840124212,0.41192,2427.8,2427.7,0.41193]
[1730840125612,4.1192,2427.8,2427.3,4.1356]
[1730840125813,0.41198,2427.4,2427.3,3.2078]
[1730840126007,0.41198,2427.4,2427.3,3.6198]
[1730840126314,0.41198,2427.4,2427.3,3.2078]
[1730840126516,0.412,2427.3,2427.1,0.88662]
[1730840126715,3.2078,2427.3,2427.1,0.4746]
[1730840126909,3.2078,2427.3,2427.2,0.41201]
[1730840127105,0.412,2427.3,2427.1,0.88662]
[1730840127313,3.2078,2427.3,2427.1,0.4746]
[1730840127530,0.4687,2427.6,2427.4,0.41198]
[1730840127721,0.88066,2427.6,2427.4,0.41198]
[1730840127908,0.4687,2427.6,2427.2,0.87931]
[1730840128216,0.41199,2427.4,2427.2,0.87931]
[1730840128444,0.41199,2427.4,2427.2,0.4673]
[1730840128813,0.41199,2427.4,2427.2,0.8793]
[1730840129222,0.4687,2427.6,2427.1,0.4746]
[1730840129413,0.41201,2427.2,2427.1,0.88663]
[1730840129614,3.2078,2427.4,2427.1,0.4746]
[1730840129821,0.412,2427.3,2427.2,0.41201]
[1730840130111,0.412,2427.3,2426.9,0.94519]
[1730840130112,0.41204,2427.1,2427.0,0.41204]
[1730840130313,0.87423,2427.2,2427.0,0.41204]
[1730840131123,0.4622,2427.2,2427.1,0.41203]
[1730840131421,0.412,2427.3,2427.2,0.41201]
[1730840131922,4.532,2427.3,2427.1,0.41202]
[1730840132117,3.61979,2427.4,2426.9,0.01479]
[1730840132421,3.61979,2427.4,2427.2,0.41201]
[1730840132919,0.41204,2427.1,2426.9,0.42685]
[1730840133122,3.2078,2427.4,2426.9,0.01479]
[1730840133324,42.55295,2427.0,2426.9,0.01479]
[1730840133723,46.67295,2427.0,2426.9,0.01479]
[1730840135134,46.67295,2427.0,2426.4,0.50814]
[1730840135135,0.41213,2426.6,2426.4,0.50814]
[1730840135335,0.86674,2426.5,2426.3,0.86976]
[1730840135536,0.4546,2426.5,2426.3,0.4576]
[1730840135736,3.6199,2426.7,2426.4,0.41215]
[1730840135936,0.41212,2426.6,2426.4,0.41215]
[1730840136137,0.41213,2426.6,2426.4,0.41214]
[1730840136338,0.41212,2426.6,2426.4,0.41215]
[1730840136539,0.4546,2426.9,2426.4,0.41215]
[1730840136741,3.61991,2426.7,2426.4,0.41215]
[1730840137348,0.41213,2426.5,2426.3,0.86976]
[1730840137644,3.2078,2426.7,2426.3,0.4576]
[1730840138030,0.41212,2426.6,2426.4,0.41215]
[1730840138239,0.41214,2426.5,2426.3,0.86975]
[1730840138944,3.2078,2426.7,2426.3,0.4576]
[1730840139134,0.86667,2426.9,2426.7,0.41209]
[1730840139443,0.86667,2426.9,2426.6,0.41211]
[1730840139444,3.2078,2426.8,2426.6,0.41211]
[1730840139635,0.41209,2426.8,2426.6,0.41211]
[1730840139944,3.2078,2427.1,2426.5,1.03034]
[1730840140142,0.8621,2427.3,2427.1,0.41202]
[1730840140337,0.4501,2427.3,2427.2,0.41201]
[1730840140835,44.0078,2427.6,2427.3,0.412]
[1730840140836,3.2078,2427.6,2427.3,0.412]
[1730840141035,0.41194,2427.7,2427.2,3.2078]
[1730840141240,44.9274,2427.9,2427.2,3.2078]
[1730840141741,0.41192,2427.8,2427.5,0.41195]
[1730840142246,45.33931,2427.9,2427.6,0.41194]
[1730840142458,44.9274,2427.9,2427.5,0.41195]
[1730840143544,0.41192,2427.8,2427.5,0.41195]
[1730840143742,0.41193,2427.7,2427.5,0.41196]
[1730840144440,44.9274,2427.9,2427.5,0.41196]
[1730840144745,44.9274,2427.9,2427.2,3.2078]
[1730840144948,1.61357254,2428.5,2427.8,3.2078]
[1730840145241,0.41181,2428.4,2427.9,0.4366]
[1730840145447,3.2078,2428.6,2427.9,0.8746]
[1730840145635,0.4118,2428.5,2428.3,0.41182]
[1730840145838,3.2078,2428.6,2427.9,0.8746]
[1730840146049,3.2078,2428.6,2428.1,0.41185]
[1730840146347,3.2078,2428.3,2427.9,0.8746]
[1730840146643,3.2078,2428.3,2428.2,0.41184]
[1730840148138,44.0078,2428.7,2428.5,0.41179]
[1730840148344,40.8,2428.7,2428.5,0.41178]
[1730840148542,40.8,2428.7,2428.4,0.41179]
[1730840148543,48.53717,2428.7,2428.4,0.41179]
[1730840148748,44.41957,2428.7,2428.5,0.41179]
[1730840149057,44.41957,2428.7,2428.1,3.2078]
[1730840149350,0.41178,2428.6,2428.1,3.2078]
[1730840149544,0.41179,2428.6,2428.3,0.41182]
[1730840149754,45.62137254,2428.7,2428.1,3.2078]
[1730840149950,44.41957,2428.7,2428.1,3.2078]
[1730840150143,44.41957,2428.7,2428.4,0.4118]
[1730840150452,46.03314254,2428.7,2428.4,0.4118]
[1730840150943,0.41178,2428.6,2428.4,0.4118]
[1730840151149,0.41178,2428.6,2428.3,0.41182]
[1730840151340,0.41178,2428.6,2428.1,3.2078]
[1730840151341,0.41182,2428.4,2428.1,3.61965]
[1730840151541,1.61357254,2428.6,2428.1,3.2078]
[1730840151739,44.0078,2428.7,2428.1,3.2078]
[1730840151740,1.61357254,2428.7,2428.1,3.2078]
[1730840151942,3.61956,2428.7,2428.5,0.41179]
[1730840152443,7.73716,2428.7,2428.5,0.41179]
[1730840152646,0.41178,2428.6,2428.4,0.4118]
[1730840153242,4.82137254,2428.7,2428.4,0.4118]
[1730840153548,5.23314254,2428.7,2428.5,0.41179]
[1730840153751,3.61957,2428.7,2428.5,0.41179]
[1730840154044,0.41178,2428.6,2428.4,0.4118]
[1730840154246,4.82137254,2428.7,2428.1,3.2078]
[1730840154642,3.2078,2428.7,2428.6,0.41178]
[1730840155038,7.3254,2428.7,2428.6,0.41178]
[1730840155247,8.93897254,2428.7,2428.6,0.41178]
[1730840155452,2.62422626,2429.4,2428.8,0.41174]
[1730840155656,0.4556,2429.3,2428.8,3.2078]
[1730840155949,0.86726,2429.3,2429.1,0.41168]
[1730840156148,0.86726,2429.3,2429.1,0.41169]
[1730840156653,0.86726,2429.3,2429.2,0.41167]
[1730840156654,0.4556,2429.3,2429.2,0.41167]
[1730840157255,0.4708,2429.4,2429.2,0.41167]
[1730840157451,0.4708,2429.4,2429.3,0.41166]
[1730840158553,0.41163,2429.5,2429.3,0.41166]
[1730840158755,3.6634,2429.6,2428.8,3.2078]
[1730840158951,3.6634,2429.6,2428.9,1.02932]
[1730840159152,0.41163,2429.5,2429.3,0.41165]
[1730840159653,4.07502,2429.6,2429.3,0.41164]
[1730840159876,4.07502,2429.6,2428.9,1.02932]
[1730840159877,4.07502,2429.6,2429.4,0.41164]
[1730840160273,0.41163,2429.5,2429.2,0.41166]
[1730840160449,3.2078,2429.3,2428.8,3.2078]
[1730840160660,3.2078,2429.3,2429.2,0.41167]
[1730840161348,3.2078,2429.3,2429.1,0.41168]
[1730840161553,3.2078,2429.3,2428.9,0.41172]
[1730840161750,0.41171,2429.0,2428.8,3.61953]
[1730840162059,0.41171,2429.0,2428.3,0.096]
[1730840162060,0.41175,2428.8,2428.3,0.096]
[1730840162255,0.4617,2428.7,2428.6,0.41177]
[1730840162450,3.6695,2428.7,2428.6,0.41177]
[1730840162647,4.08127,2428.7,2428.5,0.41179]
[1730840162849,3.6695,2428.7,2428.2,3.2078]
[1730840163062,0.41178,2428.6,2428.4,0.41181]
[1730840163257,0.4118,2428.5,2428.3,0.41182]
[1730840163557,7.24352866,2428.7,2428.5,0.41179]
[1730840163755,40.8,2428.9,2428.3,3.2078]
[1730840163959,3.2078,2429.1,2429.0,0.41171]
[1730840164460,0.4617,2429.4,2429.3,0.41166]
[1730840164959,41.67334,2429.4,2429.2,0.41167]
[1730840165149,41.67334,2429.4,2428.8,1.3791]
[1730840165150,41.2617,2429.4,2429.3,0.41166]
[1730840165791,40.8,2429.4,2429.3,0.41166]
[1730840165959,3.2078,2429.8,2429.7,0.41159]
[1730840165960,3.6794,2429.8,2429.7,0.41159]
[1730840166157,3.6794,2429.8,2429.4,0.918]
[1730840166345,0.4716,2429.8,2429.4,0.918]
[1730840166550,40.8,2429.7,2429.5,0.41161]
[1730840166749,41.21159,2429.7,2429.4,1.32963]
[1730840167161,40.8,2429.7,2429.5,0.41161]
[1730840167456,40.8,2429.7,2429.6,0.41161]
[1730840167656,44.916,2429.7,2429.3,0.41165]
[1730840167860,44.916,2429.7,2428.8,4.80794]
[1730840167861,3.2078,2429.5,2429.4,0.41163]
[1730840168054,0.4295,2429.6,2429.5,0.41162]
[1730840168564,4.5455,2429.6,2429.5,0.41162]
[1730840169061,0.41162,2429.5,2429.3,0.41164]
[1730840169853,0.4295,2429.6,2429.5,0.41162]
[1730840170053,40.8,2429.7,2429.6,0.41161]
[1730840170958,0.41164,2429.5,2429.3,0.41165]
[1730840171263,0.41165,2429.4,2429.2,0.41167]
[1730840171465,0.41166,2429.3,2429.2,0.41167]
[1730840171858,0.41165,2429.4,2429.2,0.41167]
[1730840172060,0.41166,2429.3,2429.2,0.41167]
[1730840172461,0.41165,2429.4,2429.2,0.41167]
[1730840173485,0.41166,2429.3,2429.1,0.41168]
[1730840173659,0.41166,2429.3,2428.9,0.9039]
[1730840173660,0.8745,2429.6,2428.9,0.9039]
[1730840173856,3.2078,2429.4,2428.5,3.3038]
[1730840174162,3.2078,2429.1,2428.6,0.9186]
[1730840174462,3.2078,2429.1,2428.4,0.4639]
[1730840174463,3.2078,2428.7,2428.4,0.4639]
[1730840174670,1.02926,2429.1,2428.5,0.41179]
[1730840174671,0.41178,2428.6,2428.5,0.41179]
[1730840174860,40.8,2428.6,2428.5,0.41179]
[1730840175059,40.8,2428.6,2428.3,0.4706]
[1730840175261,41.2317,2428.6,2428.3,0.4706]
[1730840175560,41.2317,2428.6,2428.5,0.41179]
[1730840176362,41.64348,2428.6,2428.4,0.4118]
[1730840176562,4.1355,2429.0,2428.3,0.4706]
[1730840176866,0.41172,2428.9,2428.4,0.4118]
[1730840177065,0.41177,2428.7,2428.5,0.41178]
[1730840180263,0.41177,2428.7,2428.3,0.4706]
[1730840180264,40.8,2428.8,2428.3,0.4706]
[1730840180662,41.21174,2428.8,2428.6,0.41177]
[1730840181359,0.41174,2428.8,2428.3,0.4706]
[1730840181565,0.41174,2428.8,2428.7,0.41176]
[1730840182067,0.41174,2428.8,2428.3,0.65566932]
[1730840182263,40.8,2428.9,2428.3,0.4706]
[1730840182467,3.2078,2428.7,2428.3,0.4706]
[1730840182671,3.2078,2428.7,2428.6,0.41178]
[1730840182866,3.2078,2428.7,2428.3,0.4706]
[1730840183067,3.61957,2428.7,2428.5,0.41179]
[1730840183472,3.61956,2428.7,2428.5,0.41178]
[1730840184774,3.2078,2428.7,2428.6,0.41178]
[1730840186081,3.61956,2428.7,2428.6,0.41178]
[1730840186275,3.2078,2428.7,2428.6,0.41178]
[1730840187171,0.41175,2428.8,2428.7,0.41176]
[1730840187578,41.21173,2428.9,2428.7,0.41176]
[1730840187971,40.8,2428.9,2428.8,0.41174]
[1730840188178,3.2078,2429.0,2428.4,1.02953]
[1730840188380,3.2078,2429.0,2428.9,0.41172]
[1730840188980,3.61952,2429.0,2428.8,0.41173]
[1730840189473,3.2078,2429.0,2428.9,0.41172]
[1730840190676,3.2078,2429.0,2428.7,0.4699]
[1730840190979,0.41174,2428.8,2428.7,0.88165]
[1730840191171,3.2078,2429.0,2428.8,0.41174]
[1730840191873,3.2078,2429.0,2428.7,0.4699]
[1730840191874,3.61952,2429.0,2428.7,0.4699]
[1730840192068,3.61952,2429.0,2428.9,0.41172]
[1730840192275,3.2078,2429.0,2428.9,0.41172]
[1730840192579,3.61951,2429.0,2428.9,0.41172]
[1730840192770,3.2078,2429.0,2428.7,0.4699]
[1730840192972,0.41174,2428.8,2428.7,0.88165]
[1730840193382,3.2078,2429.0,2428.7,0.4699]
[1730840193581,0.41173,2428.9,2428.8,0.41174]
[1730840194275,2.58252626,2429.2,2428.5,0.4319]
[1730840194479,0.41176,2428.7,2428.6,0.41176]
[1730840194685,3.2078,2429.0,2428.5,0.8995]
[1730840194878,0.41175,2428.8,2428.7,0.41175]
[1730840195366,0.41173,2428.9,2428.8,0.41174]
[1730840197266,3.2078,2429.0,2428.5,0.8995]
[1730840197467,0.41178,2428.6,2428.5,0.8995]
[1730840197871,0.41176,2428.7,2428.6,0.41177]
[1730840199083,0.41178,2428.6,2428.5,1.31128]
[1730840200980,0.41177,2428.7,2428.6,0.41177]
[1730840201278,0.41178,2428.6,2428.5,1.31128]
[1730840202573,0.41178,2428.6,2428.5,0.41178]
[1730840202773,2.15342626,2428.8,2428.6,0.41177]
[1730840202774,0.41177,2428.7,2428.6,0.41177]
[1730840203885,0.87547,2428.7,2428.6,0.41177]
[1730840206583,0.4637,2428.7,2428.6,0.41177]
[1730840206784,0.87546,2428.7,2428.6,0.41177]
[1730840209175,0.4637,2428.7,2428.6,0.41177]
[1730840209577,2.56517626,2428.8,2428.7,0.41176]
[1730840210181,2.15342626,2428.8,2428.7,0.41176]
[1730840210879,2.15342626,2429.1,2428.7,6.68803205]
[1730840211080,5.36122626,2429.2,2429.1,0.41169]
[1730840211275,3.2078,2429.2,2429.1,0.41169]
[1730840212577,9.47802626,2429.2,2428.6,3.2078]
[1730840212774,3.2078,2428.9,2428.3,3.2078]
[1730840213004,2.15470683,2428.8,2428.3,3.2078]
[1730840213184,0.41181,2428.4,2428.3,3.2078]
[1730840213686,0.4616,2428.5,2428.3,3.2078]
[1730840213879,0.4616,2428.5,2428.4,0.41181]
[1730840215779,2.56648683,2428.6,2428.4,0.41181]
[1730840216375,2.56648683,2428.6,2428.4,2.57043205]
[1730840216376,2.15470683,2428.6,2428.4,2.57043205]
[1730840216578,1.61769168,2428.6,2428.5,5.91649]
[1730840216778,1.61769168,2428.7,2428.6,0.41178]
[1730840216978,1.61769168,2428.8,2428.7,0.41176]
[1730840217386,1.61769168,2428.8,2428.7,5.07402826]
[1730840217892,2.15470683,2428.9,2428.7,4.1176]
[1730840218186,1.61792639,2428.8,2428.7,0.41176]
[1730840218384,1.61792639,2428.8,2428.7,0.9564619]
[1730840218683,2.15470683,2428.9,2428.7,0.5447019]
[1730840218882,2.15470683,2428.9,2428.6,3.2078]
[1730840219086,0.41176,2428.7,2428.6,3.2078]
[1730840219276,2.59020683,2428.8,2428.6,3.75255743]
[1730840219579,2.59020683,2428.8,2428.6,3.2078]
[1730840219580,2.56646683,2428.7,2428.6,3.2078]
[1730840219785,2.56646683,2428.7,2428.6,4.16442148]
[1730840220186,2.56646683,2428.7,2428.6,3.2078]
[1730840220385,2.56646683,2428.7,2428.6,4.297235]
[1730840220582,3.12478377,2428.8,2428.6,8.414835]
[1730840220583,2.15470683,2428.8,2428.6,8.414835]
[1730840220785,2.68928377,2429.1,2429.0,0.41171]
[1730840221085,3.2078,2429.4,2429.2,0.41166]
[1730840221295,3.2078,2429.4,2429.3,0.41166]
[1730840221878,3.12478377,2429.5,2429.3,4.116]
[1730840222075,0.4355,2429.5,2429.4,0.41164]
[1730840222876,3.12088377,2429.8,2429.7,0.41159]
[1730840223082,3.55808377,2429.8,2429.7,0.41159]
[1730840223282,0.8688,2429.8,2429.2,3.2078]
[1730840223584,0.8688,2429.8,2429.3,2.57043205]
[1730840223784,0.8688,2429.8,2429.6,0.41159]
[1730840224291,0.8688,2429.8,2429.4,0.4571]
[1730840224493,0.8688,2429.8,2429.7,0.41159]
[1730840226191,0.4372,2429.8,2429.7,0.41159]
[1730840231499,40.8,2430.1,2430.0,0.41154]
[1730840232097,0.8709,2430.2,2430.1,0.41152]
[1730840232300,1.28242,2430.2,2430.0,0.41153]
[1730840232595,42.08242,2430.2,2430.1,0.41152]
[1730840232792,41.6709,2430.2,2430.1,0.41152]
[1730840233497,42.08241,2430.2,2430.0,0.41153]
[1730840234194,41.6709,2430.2,2430.1,0.41152]
[1730840234699,0.8709,2430.2,2430.1,0.41152]
[1730840237293,0.4299,2430.2,2430.1,0.41152]
[1730840238099,41.65986,2430.5,2430.4,0.41147]
[1730840238294,41.65986,2430.5,2430.0,1.02885]
[1730840238493,0.41148,2430.4,2430.2,0.41149]
[1730840238695,41.65986,2430.5,2430.3,0.41147]
[1730840238998,41.65986,2430.5,2430.4,0.41147]
[1730840243697,41.2484,2430.5,2430.4,0.41147]
[1730840244698,0.4484,2430.5,2430.4,0.41147]
[1730840245201,41.2484,2430.5,2430.4,0.41147]
[1730840245596,0.4484,2430.5,2430.4,0.41147]
[1730840246194,0.4484,2430.5,2430.0,5.78863]
[1730840246401,0.4484,2430.5,2430.0,3.2078]
[1730840246597,3.2078,2430.3,2429.8,0.096]
[1730840246895,0.922,2430.2,2429.5,0.096]
[1730840247097,0.4116,2429.7,2429.5,0.41162]
[1730840247297,0.9057,2429.6,2429.5,0.41162]
[1730840248399,1.3403,2429.6,2429.5,0.41162]
[1730840249496,0.4428,2429.6,2429.5,7.09805205]
[1730840249996,0.4428,2429.6,2429.5,7.53935205]
[1730840250693,0.443,2429.9,2429.8,0.41157]
[1730840251096,0.85456,2429.9,2429.8,0.41157]
[1730840251992,0.443,2429.9,2429.8,0.41157]
[1730840252195,0.85456,2429.9,2429.8,0.41157]
[1730840252606,0.443,2429.9,2429.8,0.41157]
[1730840253701,0.85456,2429.9,2429.8,0.41157]
[1730840253897,0.443,2429.9,2429.8,0.41157]
[1730840254403,0.4541,2430.2,2430.0,0.41153]
[1730840254609,0.41154,2430.0,2429.9,0.41155]
[1730840254907,0.86313,2430.1,2429.9,0.41155]
[1730840255601,0.41155,2430.0,2429.5,3.01173205]
[1730840255799,0.41156,2429.9,2429.8,0.41156]
[1730840257302,0.4516,2430.1,2429.5,3.01173205]
[1730840257504,3.2078,2430.0,2429.8,0.41156]
[1730840257705,3.2078,2430.0,2429.4,3.61943]
[1730840257706,1.50052,2429.9,2429.4,3.61943]
[1730840257907,1.50052,2429.9,2429.2,2.77743205]
[1730840257908,0.41165,2429.4,2429.2,2.98209205]
[1730840258108,3.2078,2429.7,2429.1,3.2078]
[1730840258109,0.9107,2429.3,2429.1,3.2078]
[1730840258331,0.41167,2429.2,2429.0,2.98213205]
[1730840258706,4.5901,2429.3,2429.0,2.57043205]
[1730840259107,5.00177,2429.3,2429.1,0.41168]
[1730840259415,0.41167,2429.2,2429.1,0.41168]
[1730840259609,0.4117,2429.1,2428.9,0.41172]
[1730840259809,4.5901,2429.3,2428.7,3.2078]
[1730840260012,0.41174,2428.9,2428.7,0.41175]
[1730840260304,0.4542,2428.8,2428.5,4.11743205]
[1730840260710,0.4542,2428.8,2428.7,0.41176]
[1730840261809,0.4542,2428.8,2428.5,4.11743205]
[1730840262110,0.86595,2428.8,2428.6,0.41177]
[1730840262504,0.86595,2428.8,2428.5,4.11743205]
[1730840262705,0.4542,2428.8,2428.7,0.41176]
[1730840263109,0.4542,2428.8,2428.5,4.11743205]
[1730840263313,0.4542,2428.8,2428.6,0.41176]
[1730840264416,0.86594,2428.8,2428.6,0.41176]
[1730840265520,0.4542,2428.8,2428.5,2.57043205]
[1730840265727,0.4669,2428.7,2428.6,0.41178]
[1730840266105,0.4669,2428.7,2428.5,2.57043205]
[1730840266324,0.87866,2428.7,2428.5,2.98221205]
[1730840267614,0.4542,2428.8,2428.7,0.41176]
[1730840269118,0.86595,2428.8,2428.6,0.41176]
[1730840269620,0.4542,2428.8,2428.7,0.41176]
[1730840270723,0.86594,2428.8,2428.7,0.41176]
[1730840271321,0.4542,2428.8,2428.7,0.41176]
[1730840271622,0.86594,2428.8,2428.7,0.41176]
[1730840271814,0.86594,2428.8,2428.6,0.41177]
[1730840272011,0.4542,2428.8,2428.5,2.57043205]
[1730840272217,0.41179,2428.5,2428.4,3.2078]
[1730840272412,0.4383,2428.7,2428.4,3.2078]
[1730840272613,0.4383,2428.7,2428.5,0.41179]
[1730840272812,0.4383,2428.7,2428.6,0.41178]
[1730840273013,0.4542,2428.8,2428.7,0.41176]
[1730840274014,0.86595,2428.8,2428.7,0.41176]
[1730840274414,0.41176,2428.7,2428.6,0.41177]
[1730840274923,0.86594,2428.8,2428.4,4.1514]
[1730840275111,0.41177,2428.7,2428.5,0.41179]
[1730840275309,0.4542,2428.8,2428.5,0.41179]
[1730840275310,0.41178,2428.6,2428.5,0.41179]
[1730840275723,0.85647,2428.7,2428.5,0.41179]
[1730840276319,0.85647,2428.7,2428.4,3.6766]
[1730840276320,0.85647,2428.7,2428.6,0.41178]
[1730840276519,0.4542,2428.8,2428.4,3.6766]
[1730840276749,0.4542,2428.8,2428.7,0.41176]
[1730840277017,0.41176,2428.7,2428.6,0.41177]
[1730840277217,0.41176,2428.7,2428.5,0.41178]
[1730840277521,0.41176,2428.7,2428.4,3.6766]
[1730840277725,0.41179,2428.5,2428.4,3.2078]
[1730840277922,0.87409,2428.6,2428.4,3.6196]
[1730840278222,0.4623,2428.6,2428.4,3.6196]
[1730840278423,0.41179,2428.5,2428.4,3.6196]
[1730840279218,0.4623,2428.6,2428.3,0.41181]
[1730840279523,0.88151,2428.5,2428.3,0.41181]
[1730840279718,0.88151,2428.5,2428.4,0.41181]
[1730840280415,0.4697,2428.5,2428.4,0.41181]
[1730840281020,0.87408,2428.6,2428.1,1.6589108]
[1730840281221,0.4623,2428.6,2428.1,1.6589108]
[1730840281518,0.87409,2428.6,2428.4,0.4118]
[1730840281823,0.87409,2428.6,2428.5,0.41179]
[1730840282019,0.4623,2428.6,2428.5,0.41179]
[1730840282333,0.86594,2428.8,2428.7,0.41176]
[1730840282619,0.4542,2428.8,2428.6,0.41176]
[1730840282825,0.86595,2428.8,2428.7,0.41176]
[1730840283219,1.29565,2428.8,2428.7,0.41176]
[1730840284525,0.8839,2428.8,2428.7,0.41176]
[1730840284827,1.29564,2428.8,2428.7,0.41176]
[1730840285526,0.8839,2428.8,2428.7,0.41176]
[1730840285723,0.4542,2428.8,2428.7,0.41176]
[1730840285933,0.4361,2429.1,2428.6,3.2078]
[1730840286119,0.4627,2429.0,2428.9,0.41171]
[1730840287524,3.6705,2429.0,2428.4,0.096]
[1730840287837,0.41183,2428.3,2428.1,0.096]
[1730840288021,0.41189,2428.0,2427.7,0.4524]
[1730840288228,40.8,2428.0,2427.7,0.4524]
[1730840288415,0.41187,2428.1,2427.7,0.86431]
[1730840288617,4.5812,2428.2,2427.7,0.4524]
[1730840288819,41.21187,2428.1,2427.7,0.86432]
[1730840289021,41.21187,2428.1,2427.7,0.4524]
[1730840289228,41.21187,2428.1,2427.8,0.41191]
[1730840289728,41.21187,2428.1,2427.7,0.86432]
[1730840290027,40.8,2428.1,2427.7,0.86432]
[1730840290224,0.41188,2428.0,2427.7,0.86432]
[1730840290426,41.21187,2428.1,2427.7,0.86432]
[1730840290728,41.21187,2428.1,2427.7,0.4524]
[1730840290926,0.41188,2428.0,2427.7,0.86432]
[1730840291129,40.8,2428.1,2427.7,0.86432]
[1730840291331,41.21187,2428.1,2427.8,0.4119]
[1730840291930,0.41187,2428.1,2427.8,0.4119]
[1730840292127,0.41188,2428.0,2427.7,0.86432]
[1730840292726,0.41187,2428.1,2427.7,0.86432]
[1730840293028,0.41187,2428.1,2427.7,0.4524]
[1730840293225,0.41187,2428.1,2427.8,0.41191]
[1730840293426,0.41188,2428.0,2427.8,0.41191]
[1730840293627,42.1734,2428.2,2427.7,0.4524]
[1730840294024,42.1734,2428.2,2427.7,0.86433]
[1730840294221,0.4119,2427.9,2427.7,0.86433]
[1730840294421,3.2078,2428.0,2427.4,2.75494461]
[1730840294625,3.2078,2428.0,2427.7,0.41192]
[1730840294626,3.61969,2428.0,2427.7,0.41192]
[1730840294953,0.41189,2427.9,2427.7,0.41192]
[1730840295135,0.41192,2427.8,2427.5,0.41195]
[1730840295429,0.4661,2427.7,2427.4,3.19034461]
[1730840295630,0.4661,2427.7,2427.6,0.41195]
[1730840297730,0.4661,2427.7,2427.4,3.00583205]
[1730840297938,0.4661,2427.7,2427.4,0.41197]
[1730840297939,0.41196,2427.6,2427.4,0.41197]
[1730840298637,0.4661,2427.7,2427.3,5.77823205]
[1730840298831,0.4661,2427.7,2427.6,0.41195]
[1730840299034,0.87803,2427.7,2427.5,0.41195]
[1730840299233,0.87803,2427.7,2427.3,5.77823205]
[1730840299234,0.87804,2427.7,2427.4,0.41196]
[1730840299538,0.87804,2427.7,2427.5,0.41196]
[1730840301141,0.4661,2427.7,2427.6,0.41195]
[1730840301930,0.4463,2428.0,2427.5,0.4537]
[1730840302136,0.85818,2428.0,2427.8,0.4119]
[1730840302638,0.4463,2428.0,2427.9,0.41189]
[1730840302840,0.84845,2428.2,2427.9,0.41188]
[1730840302841,0.4366,2428.2,2427.9,0.41188]
[1730840303042,0.4366,2428.2,2427.6,2.57043205]
[1730840303341,0.4703,2428.1,2428.0,0.41187]
[1730840304847,0.4612,2428.5,2428.0,3.2078]
[1730840305046,0.4603,2428.4,2428.3,0.41183]
[1730840306945,0.4603,2428.4,2428.2,0.41183]
[1730840306946,0.87212,2428.4,2428.2,0.41183]
[1730840308043,0.4603,2428.4,2428.3,0.41183]
[1730840308547,4.5787,2428.4,2428.0,3.2078]
[1730840308738,0.41186,2428.1,2428.0,3.2078]
[1730840309346,45.33026,2428.1,2428.0,2.4931]
[1730840310446,44.9184,2428.1,2428.0,2.90498]
[1730840310944,45.33026,2428.1,2428.0,2.90498]
[1730840311847,45.33026,2428.1,2428.0,2.4931]
[1730840312437,45.33026,2428.1,2428.0,2.90498]
[1730840312962,45.33026,2428.1,2428.0,2.4931]
[1730840313148,41.21186,2428.1,2428.0,2.90498]
[1730840313347,45.33026,2428.1,2428.0,2.90498]
[1730840314049,44.9184,2428.1,2428.0,2.90498]
[1730840314351,45.33026,2428.1,2428.0,2.90498]
[1730840314551,45.33026,2428.1,2428.0,0.41188]
[1730840315050,44.9184,2428.1,2428.0,0.41188]
[1730840315252,5.81427896,2428.4,2427.9,3.60017205]
[1730840315554,5.81427896,2428.4,2428.3,0.41183]
[1730840315555,3.2078,2428.4,2428.3,0.41183]
[1730840317550,3.6759,2428.5,2428.4,0.41181]
[1730840317747,0.4681,2428.5,2428.4,0.41181]
[1730840320050,0.4681,2428.5,2428.1,0.4513]
[1730840320252,0.84112,2428.4,2428.2,0.41183]
[1730840320450,0.41183,2428.3,2428.2,0.41183]
[1730840321046,0.4752,2428.3,2428.2,0.41183]
[1730840322851,0.88703,2428.3,2428.2,0.41183]